fUST/lending_fUST_20250615
["ID","MTS","AMOUNT","RATE_DAILY","PERIOD"]
[365941336,1749993048804,-460.0,0.00020547,2]
[365941338,1749993048814,-460.0,0.00020547,2]
[365941340,1749993048824,-460.0,0.00020547,2]
[365941342,1749993048835,-383.29082594,0.00020547,2]
[365941344,1749993048845,-1125.83,0.00020547,2]
[365941346,1749993048855,-460.0,0.00020547,2]
[365941348,1749993048866,-592.33,0.000206,2]
[365941349,1749993048877,-1528.61,0.000206,2]
[365941351,1749993048887,-1546.11,0.00020752,2]
[365941354,1749993048897,-1332.26564882,0.000208,4]
[365941356,1749993048906,-1332.26564858,0.000208,4]
[365941358,1749993048916,-1332.26564858,0.000208,4]
[365941360,1749993048926,-1332.26564858,0.000208,4]
[365941361,1749993048936,-1332.26564858,0.000208,4]
[365941363,1749993048946,-1000.0,0.00020816,2]
[365941365,1749993048955,-460.0,0.00020821,2]
[365941368,1749993048966,-1016.56,0.00020821,2]
[365941370,1749993048976,-460.0,0.00020821,2]
[365941372,1749993048986,-809.8,0.00020821,2]
[365941373,1749993048996,-1111.95,0.00020821,2]
[365941376,1749993049006,-1215.29,0.00020821,2]
[365941377,1749993049016,-466.75,0.00020821,2]
[365941379,1749993049026,-1249.59,0.00020821,2]
[365941382,1749993049036,-692.9,0.00020821,2]
[365941384,1749993049046,-485.26,0.00020821,2]
[365941385,1749993049056,-460.0,0.00020821,2]
[365941387,1749993049066,-662.72,0.00020821,2]
[365941389,1749993049075,-460.0,0.00020821,2]
[365941391,1749993049085,-461.02,0.00020821,2]
[365941393,1749993049095,-460.0,0.00020821,2]
[365941395,1749993049104,-460.0,0.00020821,2]
[365941397,1749993049114,-460.0,0.00020821,2]
[365941399,1749993049123,-365.48819412,0.00020821,2]
[365941401,1749993049133,-460.0,0.00020821,2]
[365941403,1749993049143,-769.12,0.00020821,2]
[365941405,1749993049152,-460.0,0.00020821,2]
[365941407,1749993049162,-460.0,0.00020821,2]
[365941409,1749993049171,-1640.94,0.00020821,2]
[365941411,1749993049181,-460.0,0.00020821,2]
[365941413,1749993049191,-460.0,0.00020821,2]
[365941415,1749993049201,-460.0,0.00020821,2]
[365941417,1749993049210,-1075.38,0.00020821,2]
[365941419,1749993049221,-1486.5,0.00020821,2]
[365941421,1749993049231,-460.0,0.00020821,2]
[365941423,1749993049240,-460.0,0.00020821,2]
[365941425,1749993049250,-460.0,0.00020821,2]
[365941427,1749993049260,-460.0,0.00020821,2]
[365941429,1749993049269,-460.0,0.00020821,2]
[365941431,1749993049279,-1125.83,0.00020821,2]
[365941433,1749993049289,-460.0,0.00020821,2]
[365941435,1749993049298,-160.0,0.00020893,2]
[365941437,1749993049309,-420.0,0.00020899,2]
[365941439,1749993049319,-342.0,0.00020899,2]
[365941441,1749993049328,-1332.26564858,0.00020934,4]
[365941443,1749993049338,-314.86992006,0.00020942,2]
[365941445,1749993049348,-160.0,0.00020985,2]
[365941447,1749993049358,-160.0,0.00020985,2]
[365941449,1749993049367,-424.47602138,0.00020985,2]
[365941451,1749993049377,-845.25843836,0.00020985,2]
[365941453,1749993049386,-160.0,0.00020985,2]
[365941455,1749993049396,-160.0,0.00020985,2]
[365941457,1749993049405,-229.86375354,0.00020985,2]
[365941459,1749993049415,-213.32089821,0.00020985,2]
[365941461,1749993049424,-12535.62630729,0.00020985,2]
[365941463,1749993049433,-835.55256958,0.00020985,2]
[365941465,1749993049442,-181.00958402,0.00020996,2]
[365941467,1749993049453,-1680.0,0.00021,2]
[365941469,1749993049462,-800.0,0.00021095,2]
[365941471,1749993049471,-460.0,0.00021095,2]
[365941473,1749993049480,-1016.56,0.00021095,2]
[365941475,1749993049490,-281.84781383,0.00021095,2]
[365941477,1749993049499,-809.8,0.00021095,2]
[365941479,1749993049509,-1111.95,0.00021095,2]
[365941481,1749993049518,-1215.29,0.00021095,2]
[365941486,1749993049554,-1249.59,0.00021095,2]
[365941488,1749993049564,-692.9,0.00021095,2]
[365941490,1749993049573,-460.0,0.00021095,2]
[365941492,1749993049584,-460.0,0.00021095,2]
[365941494,1749993049593,-662.72,0.00021095,2]
[365941496,1749993049602,-461.02,0.00021095,2]
[365941498,1749993049611,-460.0,0.00021095,2]
[365941500,1749993049620,-460.0,0.00021095,2]
[365941501,1749993049629,-321.52,0.00021095,2]
[365941503,1749993049638,-500.0,0.00021095,3]
[365941505,1749993049648,-460.0,0.00021095,2]
[365941507,1749993049658,-769.12,0.00021095,2]
[365941509,1749993049667,-460.0,0.00021095,2]
[365941511,1749993049676,-460.0,0.00021095,2]
[365941513,1749993049685,-1640.94,0.00021095,2]
[365941515,1749993049695,-460.0,0.00021095,2]
[365941517,1749993049704,-460.0,0.00021095,2]
[365941519,1749993049714,-460.0,0.00021095,2]
[365941521,1749993049723,-1075.38,0.00021095,2]
[365941523,1749993049733,-1486.5,0.00021095,2]
[365941525,1749993049742,-460.0,0.00021095,2]
[365941527,1749993049751,-596.6549514,0.00021095,2]
[365941529,1749993049761,-460.0,0.00021095,2]
[365941531,1749993049771,-460.0,0.00021095,2]
[365941533,1749993049780,-1125.83,0.00021095,2]
[365941535,1749993049790,-460.0,0.00021095,2]
[365941537,1749993049799,-1332.26564858,0.00021141,4]
[365941539,1749993049810,-1332.26564858,0.00021348,5]
[365941541,1749993049819,-460.0,0.00021369,2]
[365941543,1749993049829,-1016.56,0.00021369,2]
[365941545,1749993049838,-809.8,0.00021369,2]
[365941547,1749993049848,-1111.95,0.00021369,2]
[365941549,1749993049858,-1215.29,0.00021369,2]
[365941551,1749993049869,-1249.59,0.00021369,2]
[365941553,1749993049879,-692.9,0.00021369,2]
[365941555,1749993049888,-460.0,0.00021369,2]
[365941557,1749993049897,-460.0,0.00021369,2]
[365941559,1749993049907,-662.72,0.00021369,2]
[365941561,1749993049916,-461.02,0.00021369,2]
[365941563,1749993049926,-277.63,0.00021369,2]
[365941565,1749993049935,-460.0,0.00021369,2]
[365941567,1749993049946,-460.0,0.00021369,2]
[365941569,1749993049955,-769.12,0.00021369,2]
[365941571,1749993049964,-460.0,0.00021369,2]
[365941573,1749993049974,-595.72,0.00021369,2]
[365941575,1749993049983,-1640.94,0.00021369,2]
[365941577,1749993049992,-460.0,0.00021369,2]
[365941578,1749993050001,-460.0,0.00021369,2]
[365941580,1749993050010,-1075.38,0.00021369,2]
[365941582,1749993050019,-1486.5,0.00021369,2]
[365941584,1749993050029,-400.0,0.00021369,2]
[365941586,1749993050038,-245.73,0.00021369,2]
[365941588,1749993050048,-460.0,0.00021369,2]
[365941590,1749993050059,-1125.83,0.00021369,2]
[365941592,1749993050069,-460.0,0.00021369,2]
[365941594,1749993050079,-168.0,0.0002137,2]
[365941596,1749993050088,-500.0,0.00021465,2]
[365941598,1749993050098,-3373.67676,0.00021526,2]
[365941600,1749993050108,-151.0,0.00021527,2]
[365941602,1749993050117,-1688.0,0.00021527,2]
[365941604,1749993050127,-500.0,0.00021527,2]
[365941606,1749993050137,-5000.0,0.00021527,2]
[365941608,1749993050146,-500.0,0.00021527,2]
[365941610,1749993050155,-500.0,0.00021527,2]
[365941612,1749993050165,-500.0,0.00021527,2]
[365941614,1749993050175,-500.0,0.00021527,2]
[365941616,1749993050184,-500.0,0.00021527,2]
[365941618,1749993050194,-151.0,0.00021527,2]
[365941620,1749993050203,-500.0,0.00021527,2]
[365941622,1749993050213,-500.0,0.00021527,2]
[365941624,1749993050222,-151.0,0.00021527,2]
[365941626,1749993050232,-500.0,0.00021527,2]
[365941628,1749993050241,-500.0,0.00021527,2]
[365941630,1749993050250,-500.0,0.00021527,2]
[365941632,1749993050260,-500.0,0.00021527,2]
[365941634,1749993050270,-151.70252757,0.00021527,2]
[365941636,1749993050279,-151.0,0.00021527,2]
[365941638,1749993050289,-500.0,0.00021527,2]
[365941640,1749993050299,-500.0,0.00021527,2]
[365941642,1749993050308,-151.0,0.00021527,2]
[365941644,1749993050317,-500.0,0.00021527,2]
[365941646,1749993050326,-500.0,0.00021527,2]
[365941648,1749993050336,-500.0,0.00021527,2]
[365941650,1749993050345,-151.0,0.00021527,2]
[365941652,1749993050354,-500.0,0.00021527,2]
[365941653,1749993050363,-500.0,0.00021527,2]
[365941655,1749993050372,-151.0,0.00021527,2]
[365941657,1749993050382,-500.0,0.00021527,2]
[365941659,1749993050391,-156.10376169,0.00021527,2]
[365941661,1749993050400,-500.0,0.00021527,2]
[365941663,1749993050410,-500.0,0.00021527,2]
[365941665,1749993050420,-500.0,0.00021527,2]
[365941668,1749993050429,-151.0,0.00021527,2]
[365941669,1749993050439,-500.0,0.00021527,2]
[365941671,1749993050448,-500.0,0.00021527,2]
[365941673,1749993050458,-151.0,0.00021527,2]
[365941675,1749993050467,-500.0,0.00021527,2]
[365941677,1749993050476,-500.0,0.00021527,2]
[365941679,1749993050485,-500.0,0.00021527,2]
[365941681,1749993050495,-500.0,0.00021527,2]
[365941683,1749993050506,-151.0,0.00021527,2]
[365941685,1749993050515,-500.0,0.00021527,2]
[365941687,1749993050525,-500.0,0.00021527,2]
[365941689,1749993050534,-151.0,0.00021527,2]
[365941691,1749993050543,-500.0,0.00021527,2]
[365941693,1749993050552,-500.0,0.00021527,2]
[365941695,1749993050563,-151.0,0.00021527,2]
[365941697,1749993050572,-500.0,0.00021527,2]
[365941699,1749993050581,-500.0,0.00021527,2]
[365941701,1749993050590,-151.0,0.00021527,2]
[365941703,1749993050600,-500.0,0.00021527,2]
[365941705,1749993050610,-151.0,0.00021527,2]
[365941707,1749993050619,-500.0,0.00021527,2]
[365941709,1749993050629,-500.0,0.00021527,2]
[365941711,1749993050639,-183.60450056,0.00021527,2]
[365941713,1749993050649,-500.0,0.00021527,2]
[365941715,1749993050659,-500.0,0.00021527,2]
[365941717,1749993050670,-207.4,0.00021527,2]
[365941719,1749993050680,-1332.26564858,0.00021555,5]
[365941721,1749993050690,-1750.456,0.00021582,2]
[365941723,1749993050700,-165.0,0.000216,3]
[365941725,1749993050709,-587.0,0.00021626,2]
[365941727,1749993050719,-1815.222872,0.00021637,2]
[365941729,1749993050728,-460.0,0.00021643,2]
[365941731,1749993050738,-1016.56,0.00021643,2]
[365941733,1749993050748,-809.8,0.00021643,2]
[365941735,1749993050758,-1111.95,0.00021643,2]
[365941737,1749993050768,-1215.29,0.00021643,2]
[365941739,1749993050778,-1249.59,0.00021643,2]
[365941741,1749993050788,-692.9,0.00021643,2]
[365941743,1749993050798,-460.0,0.00021643,2]
[365941745,1749993050811,-460.0,0.00021643,2]
[365941747,1749993050829,-662.72,0.00021643,2]
[365941749,1749993050848,-461.02,0.00021643,2]
[365941751,1749993050857,-588.23,0.00021643,2]
[365941753,1749993050869,-460.0,0.00021643,2]
[365941755,1749993050878,-769.12,0.00021643,2]
[365941756,1749993050891,-460.0,0.00021643,2]
[365941757,1749993050900,-1640.94,0.00021643,2]
[365941758,1749993050910,-460.0,0.00021643,2]
[365941759,1749993050921,-460.0,0.00021643,2]
[365941760,1749993050932,-1075.38,0.00021643,2]
[365941761,1749993050942,-1486.5,0.00021643,2]
[365941762,1749993050952,-460.0,0.00021643,2]
[365941763,1749993050962,-1125.83,0.00021643,2]
[365941764,1749993050973,-460.0,0.00021643,2]
[365941765,1749993050983,-1882.38611826,0.00021692,2]
[365941767,1749993050993,-168.0,0.00021692,2]
[365941769,1749993051002,-3092.22,0.0002174,2]
[365941771,1749993051011,-1952.03440464,0.00021747,2]
[365941772,1749993051021,-1332.26564858,0.00021762,5]
[365941775,1749993051032,-168.0,0.00021766,2]
[365941777,1749993051042,-2024.25967761,0.00021802,2]
[365941779,1749993051052,-1000.0,0.00021835,2]
[365941781,1749993051064,-1000.0,0.00021835,2]
[365941783,1749993051073,-1000.0,0.00021835,2]
[365941785,1749993051083,-564.57286019,0.00021835,2]
[365941787,1749993051093,-2099.15728568,0.00021857,2]
[365941789,1749993051102,-258.77267647,0.00021865,2]
[365941791,1749993051112,-304.26549004,0.00021865,2]
[365941793,1749993051121,-507.4259494,0.00021865,2]
[365941795,1749993051131,-501.7245671,0.00021865,2]
[365941797,1749993051141,-2176.82610525,0.00021912,2]
[365941799,1749993051153,-160.0,0.00021917,2]
[365941801,1749993051162,-504.23576132,0.00021917,2]
[365941803,1749993051172,-460.0,0.00021917,2]
[365941805,1749993051182,-500.0,0.00021917,2]
[365941807,1749993051191,-1016.56,0.00021917,2]
[365941809,1749993051201,-809.8,0.00021917,2]
[365941811,1749993051211,-1111.95,0.00021917,2]
[365941813,1749993051220,-1215.29,0.00021917,2]
[365941815,1749993051231,-1249.59,0.00021917,2]
[365941817,1749993051240,-692.9,0.00021917,2]
[365941819,1749993051250,-460.0,0.00021917,2]
[365941821,1749993051259,-460.0,0.00021917,2]
[365941823,1749993051268,-662.72,0.00021917,2]
[365941825,1749993051278,-461.02,0.00021917,2]
[365941828,1749993051288,-500.0,0.00021917,2]
[365941830,1749993051297,-500.0,0.00021917,2]
[365941832,1749993051307,-500.0,0.00021917,2]
[365941834,1749993051317,-502.37999816,0.00021917,2]
[365941836,1749993051326,-460.0,0.00021917,2]
[365941838,1749993051336,-769.12,0.00021917,2]
[365941840,1749993051345,-485.74,0.00021917,2]
[365941842,1749993051354,-1640.94,0.00021917,2]
[365941844,1749993051364,-460.0,0.00021917,2]
[365941846,1749993051373,-460.0,0.00021917,2]
[365941848,1749993051384,-1075.38,0.00021917,2]
[365941850,1749993051393,-1486.5,0.00021917,2]
[365941852,1749993051402,-389.01302477,0.00021917,2]
[365941854,1749993051412,-1125.83,0.00021917,2]
[365941856,1749993051422,-460.0,0.00021917,2]
[365941858,1749993051432,-500.0,0.00021918,2]
[365941860,1749993051443,-500.0,0.00021918,2]
[365941862,1749993051452,-500.0,0.00021918,2]
[365941864,1749993051461,-500.0,0.00021918,2]
[365941866,1749993051472,-500.0,0.00021918,2]
[365941868,1749993051481,-500.0,0.00021918,2]
[365941870,1749993051490,-500.0,0.00021918,2]
[365941872,1749993051501,-500.0,0.00021918,2]
[365941874,1749993051511,-500.0,0.00021918,2]
[365941876,1749993051520,-500.0,0.00021918,2]
[365941878,1749993051530,-500.0,0.00021918,2]
[365941881,1749993051540,-500.0,0.00021918,2]
[365941883,1749993051549,-500.0,0.00021918,2]
[365941885,1749993051559,-500.0,0.00021918,2]
[365941887,1749993051568,-500.0,0.00021918,2]
[365941889,1749993051578,-500.0,0.00021918,2]
[365941891,1749993051588,-500.0,0.00021918,2]
[365941893,1749993051598,-500.0,0.00021918,2]
[365941895,1749993051608,-500.0,0.00021918,2]
[365941897,1749993051619,-500.0,0.00021918,2]
[365941899,1749993051628,-500.0,0.00021918,2]
[365941901,1749993051638,-500.0,0.00021918,2]
[365941903,1749993051648,-500.0,0.00021918,2]
[365941905,1749993051658,-500.0,0.00021918,2]
[365941907,1749993051667,-500.0,0.00021918,2]
[365941909,1749993051677,-500.0,0.00021918,2]
[365941911,1749993051686,-500.0,0.00021918,2]
[365941913,1749993051696,-500.0,0.00021918,2]
[365941915,1749993051705,-500.0,0.00021918,2]
[365941917,1749993051716,-500.0,0.00021918,2]
[365941920,1749993051725,-500.0,0.00021918,2]
[365941922,1749993051734,-500.0,0.00021918,2]
[365941924,1749993051743,-415.03988424,0.00021918,2]
[365941926,1749993051752,-181.00958402,0.00021954,2]
[365941928,1749993051762,-502.16626817,0.00021961,2]
[365941930,1749993051772,-500.0,0.00021961,2]
[365941932,1749993051781,-500.0,0.00021961,2]
[365941934,1749993051791,-2257.36867115,0.00021967,2]
[365941936,1749993051800,-1332.26564858,0.00021969,6]
[365941938,1749993051810,-500.0,0.00021973,2]
[365941940,1749993051819,-500.0,0.00021973,2]
[365941942,1749993051829,-500.0,0.00021973,2]
[365941944,1749993051839,-501.1678591,0.00021973,2]
[365941946,1749993051849,-500.0,0.00021973,2]
[365941948,1749993051858,-533.62815428,0.00021973,2]
[365941950,1749993051870,-500.0,0.00021973,2]
[365941952,1749993051880,-500.0,0.00021973,2]
[365941954,1749993051889,-501.02704274,0.00021973,2]
[365941956,1749993051899,-258.76992136,0.00021973,2]
[365941958,1749993051908,-258.8294469,0.00021973,2]
[365941960,1749993051920,-500.0,0.00021973,2]
[365941962,1749993051929,-263.77751492,0.00021973,2]
[365941964,1749993051940,-502.36320382,0.00021973,2]
[365941966,1749993051949,-500.0,0.00021973,2]
[365941968,1749993051960,-260.36814119,0.00021973,2]
[365941970,1749993051970,-500.0,0.00021973,2]
[365941972,1749993051979,-500.0,0.00021973,2]
[365941974,1749993051989,-500.0,0.00021973,2]
[365941976,1749993051998,-336.69550584,0.00021973,2]
[365941978,1749993052008,-502.2537229,0.00021973,2]
[365941980,1749993052018,-503.41899336,0.00021973,2]
[365941982,1749993052027,-502.78795527,0.00021973,2]
[365941984,1749993052037,-171.8358578,0.00021973,2]
[365941986,1749993052047,-500.0,0.00021973,2]
[365941989,1749993052060,-500.0,0.00021973,2]
[365941991,1749993052069,-501.28660885,0.00021973,2]
[365941993,1749993052078,-502.0387766,0.00021973,2]
[365941995,1749993052088,-258.77533907,0.00021973,2]
[365941997,1749993052097,-500.9714309,0.00021973,2]
[365941999,1749993052106,-263.18105773,0.00021973,2]
[365942001,1749993052116,-500.0,0.00021973,2]
[365942003,1749993052126,-500.0,0.00021973,2]
[365942005,1749993052136,-79473.54,0.00022,7]
[365942007,1749993052146,-50917.88,0.00022,2]
[365942009,1749993052156,-12535.62630729,0.00022,7]
[365942011,1749993052166,-155.0,0.00022,9]
[365942013,1749993052175,-186.0,0.00022,2]
[365942015,1749993052185,-172.0,0.00022,2]
[365942017,1749993052195,-213.32089821,0.00022,7]
[365942019,1749993052204,-160.0,0.00022,2]
[365942021,1749993052214,-2250.32836808,0.00022022,2]
[365942023,1749993052224,-5000.0,0.00022075,2]
[365942025,1749993052234,-1528.61,0.000221,7]
[365942027,1749993052244,-1332.26564858,0.00022176,6]
[365942030,1749993052254,-800.0,0.00022191,2]
[365942032,1749993052264,-460.0,0.00022191,2]
[365942044,1749993052372,-1016.56,0.00022191,2]
[365942046,1749993052382,-809.8,0.00022191,2]
[365942048,1749993052391,-1111.95,0.00022191,2]
[365942050,1749993052400,-1215.29,0.00022191,2]
[365942052,1749993052410,-1249.59,0.00022191,2]
[365942054,1749993052419,-692.9,0.00022191,2]
[365942056,1749993052428,-460.0,0.00022191,2]
[365942058,1749993052437,-460.0,0.00022191,2]
[365942060,1749993052447,-662.72,0.00022191,2]
[365942062,1749993052456,-461.02,0.00022191,2]
[365942064,1749993052465,-460.0,0.00022191,2]
[365942066,1749993052475,-769.12,0.00022191,2]
[365942068,1749993052484,-1640.94,0.00022191,2]
[365942070,1749993052494,-460.0,0.00022191,2]
[365942072,1749993052503,-560.24,0.00022191,2]
[365942074,1749993052513,-1075.38,0.00022191,2]
[365942076,1749993052522,-1486.5,0.00022191,2]
[365942078,1749993052531,-1125.83,0.00022191,2]
[365942080,1749993052541,-330.0,0.00022191,2]
[365942083,1749993052551,-592.33,0.000222,7]
[365942084,1749993052560,-168.0,0.00022266,2]
[365942086,1749993052569,-168.0,0.00022373,2]
[365942088,1749993052578,-1332.26564858,0.00022383,7]
[365942090,1749993052588,-153.0,0.00022417,2]
[365942092,1749993052598,-153.0,0.00022417,2]
[365942094,1749993052607,-153.0,0.00022417,2]
[365942096,1749993052616,-153.0,0.00022417,2]
[365942098,1749993052626,-153.0,0.00022417,2]
[365942101,1749993052636,-153.0,0.00022417,2]
[365942103,1749993052645,-153.0,0.00022417,2]
[365942105,1749993052654,-153.0,0.00022417,2]
[365942107,1749993052663,-153.0,0.00022417,2]
[365942109,1749993052671,-153.0,0.00022419,2]
[365942111,1749993052680,-153.0,0.00022419,2]
[365942113,1749993052689,-153.0,0.00022419,2]
[365942115,1749993052698,-153.0,0.00022419,2]
[365942117,1749993052707,-153.0,0.00022419,2]
[365942119,1749993052716,-153.0,0.00022419,2]
[365942121,1749993052726,-153.0,0.00022419,2]
[365942123,1749993052735,-153.0,0.00022419,2]
[365942125,1749993052744,-153.0,0.00022419,2]
[365942127,1749993052754,-153.0,0.00022419,2]
[365942129,1749993052763,-153.0,0.00022419,2]
[365942131,1749993052772,-153.0,0.00022419,2]
[365942133,1749993052782,-153.0,0.00022419,2]
[365942135,1749993052791,-153.0,0.00022419,2]
[365942137,1749993052800,-153.0,0.00022419,2]
[365942139,1749993052810,-153.0,0.00022419,2]
[365942141,1749993052820,-153.0,0.00022419,2]
[365942143,1749993052830,-153.0,0.00022419,2]
[365942145,1749993052839,-153.0,0.00022419,2]
[365942147,1749993052849,-153.0,0.00022419,2]
[365942149,1749993052857,-153.0,0.00022419,2]
[365942151,1749993052868,-153.0,0.00022419,2]
[365942153,1749993052878,-153.0,0.00022419,2]
[365942155,1749993052887,-153.0,0.00022419,2]
[365942157,1749993052895,-460.0,0.00022465,2]
[365942159,1749993052905,-500.0,0.00022465,2]
[365942161,1749993052914,-1016.56,0.00022465,2]
[365942163,1749993052924,-809.8,0.00022465,2]
[365942165,1749993052934,-1111.95,0.00022465,2]
[365942167,1749993052944,-1215.29,0.00022465,2]
[365942169,1749993052954,-1249.59,0.00022465,2]
[365942171,1749993052964,-692.9,0.00022465,2]
[365942173,1749993052973,-460.0,0.00022465,2]
[365942175,1749993052983,-460.0,0.00022465,2]
[365942177,1749993052993,-662.72,0.00022465,2]
[365942179,1749993053003,-461.02,0.00022465,2]
[365942181,1749993053013,-460.0,0.00022465,2]
[365942183,1749993053023,-769.12,0.00022465,2]
[365942185,1749993053032,-1640.94,0.00022465,2]
[365942187,1749993053042,-460.0,0.00022465,2]
[365942189,1749993053052,-1075.38,0.00022465,2]
[365942191,1749993053064,-1486.5,0.00022465,2]
[365942193,1749993053074,-1125.83,0.00022465,2]
[365942195,1749993053084,-151.0,0.000225,6]
[365942197,1749993053093,-1000.9670821,0.00022521,2]
[365942199,1749993053103,-1000.0,0.00022521,2]
[365942201,1749993053112,-500.0,0.00022521,2]
[365942203,1749993053121,-500.0,0.00022521,2]
[365942205,1749993053131,-1000.0,0.00022521,2]
[365942207,1749993053140,-1000.0,0.00022521,2]
[365942209,1749993053150,-1000.0,0.00022521,2]
[365942211,1749993053160,-1000.0,0.00022521,2]
[365942213,1749993053169,-1000.0,0.00022521,2]
[365942215,1749993053179,-1000.0,0.00022521,2]
[365942217,1749993053188,-500.0,0.00022539,2]
[365942219,1749993053197,-168.0,0.00022583,2]
[365942221,1749993053207,-1332.26564858,0.0002259,7]
[365942223,1749993053217,-219.036196,0.00022603,2]
[365942225,1749993053227,-5000.0,0.00022623,2]
[365942227,1749993053236,-250.0,0.00022659,2]
[365942229,1749993053245,-4638.34,0.00022728,2]
[365942231,1749993053255,-460.0,0.00022739,2]
[365942233,1749993053264,-1016.56,0.00022739,2]
[365942235,1749993053273,-809.8,0.00022739,2]
[365942237,1749993053282,-1111.95,0.00022739,2]
[365942239,1749993053292,-1215.29,0.00022739,2]
[365942241,1749993053301,-1249.59,0.00022739,2]
[365942243,1749993053311,-692.9,0.00022739,2]
[365942246,1749993053321,-282.18,0.00022739,2]
[365942248,1749993053329,-460.0,0.00022739,2]
[365942249,1749993053339,-662.72,0.00022739,2]
[365942251,1749993053348,-461.02,0.00022739,2]
[365942253,1749993053357,-266.4,0.00022739,2]
[365942255,1749993053366,-769.12,0.00022739,2]
[365942258,1749993053375,-1640.94,0.00022739,2]
[365942260,1749993053385,-1075.38,0.00022739,2]
[365942262,1749993053394,-1486.5,0.00022739,2]
[365942264,1749993053403,-1125.83,0.00022739,2]
[365942266,1749993053412,-587.0,0.00022776,2]
[365942268,1749993053421,-1332.26564858,0.00022797,7]
[365942270,1749993053430,-215.0738,0.00022896,2]
[365942272,1749993053439,-168.3351789,0.000229,2]
[365942274,1749993053448,-181.00958402,0.00022913,2]
[365942276,1749993053457,-5000.0,0.00022996,2]
[365942278,1749993053466,-184.0,0.00022997,2]
[365942280,1749993053475,-151.0,0.00023,5]
[365942282,1749993053484,-79473.54,0.00023,7]
[365942284,1749993053493,-12535.62630729,0.00023,7]
[365942286,1749993053502,-1332.26564858,0.00023003,8]
[365942288,1749993053511,-460.0,0.00023013,2]
[365942290,1749993053520,-1016.56,0.00023013,2]
[365942292,1749993053529,-809.8,0.00023013,2]
[365942294,1749993053539,-1111.95,0.00023013,2]
[365942296,1749993053548,-1215.29,0.00023013,2]
[365942298,1749993053557,-1249.59,0.00023013,2]
[365942300,1749993053568,-692.9,0.00023013,2]
[365942302,1749993053577,-460.0,0.00023013,2]
[365942304,1749993053586,-662.72,0.00023013,2]
[365942306,1749993053595,-461.02,0.00023013,2]
[365942308,1749993053605,-769.12,0.00023013,2]
[365942310,1749993053614,-1640.94,0.00023013,2]
[365942312,1749993053623,-1075.38,0.00023013,2]
[365942314,1749993053633,-1486.5,0.00023013,2]
[365942316,1749993053642,-1125.83,0.00023013,2]
[365942318,1749993053651,-500.0,0.00023027,2]
[365942320,1749993053660,-3968.97,0.00023042,3]
[365942322,1749993053669,-500.0,0.00023055,2]
[365942324,1749993053678,-3000.0,0.00023062,3]
[365942326,1749993053688,-1013.82596414,0.00023068,2]
[365942328,1749993053697,-1500.0,0.00023068,2]
[365942330,1749993053707,-1500.0,0.00023068,2]
[365942332,1749993053716,-1500.0,0.00023068,2]
[365942334,1749993053725,-500.0,0.00023072,2]
[365942336,1749993053735,-500.0,0.00023093,2]
[365942338,1749993053744,-845.25843836,0.000231,3]
[365942340,1749993053753,-160.0,0.000231,3]